lending/lending_fUSD_20251121
["ID","MTS","AMOUNT","RATE_DAILY","PERIOD"]
[394594211,1763747523749,-927.4980022,0.000411,120]
[394594212,1763747523780,-927.4980022,0.000411,120]
[394594213,1763747523813,-927.4980022,0.000411,120]
[394594214,1763747523843,-927.4980022,0.000411,120]
[394594215,1763747523873,-927.4980022,0.000411,120]
[394594216,1763747523904,-927.49,0.000411,120]
[394594217,1763747523934,-2164.16200513,0.000411,120]
[394594218,1763747523967,-2164.16200513,0.000411,120]
[394594219,1763747523999,-2164.16200513,0.000411,120]
[394594220,1763747524033,-2164.16200513,0.000411,120]
[394594221,1763747524067,-2164.16200513,0.000411,120]
[394594222,1763747524102,-2164.16200513,0.000411,120]
[394594223,1763747524134,-2164.16200513,0.000411,120]
[394594224,1763747524168,-2164.16200513,0.000411,120]
[394594225,1763747524198,-2164.16200513,0.000411,120]
[394594226,1763747524228,-2164.16200513,0.000411,120]
[394594227,1763747524257,-2164.16200513,0.000411,120]
[394594228,1763747524286,-2164.16200513,0.000411,120]
[394594229,1763747524316,-2164.16200513,0.000411,120]
[394594230,1763747524351,-2164.16200513,0.000411,120]
[394594231,1763747524384,-2164.16200513,0.000411,120]
[394594232,1763747524416,-2164.16200513,0.000411,120]
[394594233,1763747524450,-2164.16200513,0.000411,120]
[394594234,1763747524482,-2164.16200513,0.000411,120]
[394594235,1763747524515,-2164.16200513,0.000411,120]
[394594236,1763747524547,-2164.16,0.000411,120]
[394594237,1763747524581,-465.98991264,0.000411,120]
[394594238,1763747524617,-465.98991264,0.000411,120]
[394594239,1763747524653,-465.98991264,0.000411,120]
[394594240,1763747524689,-465.98991264,0.000411,120]
[394594241,1763747524724,-465.98991264,0.000411,120]
[394594242,1763747524758,-465.98991264,0.000411,120]
[394594243,1763747524791,-465.98991264,0.000411,120]
[394594244,1763747524823,-465.98991264,0.000411,120]
[394594245,1763747524860,-465.98991264,0.000411,120]
[394594246,1763747524893,-465.98991264,0.000411,120]
[394594247,1763747524927,-465.98991264,0.000411,120]
[394594248,1763747524960,-465.98991264,0.000411,120]
[394594249,1763747524990,-465.98991264,0.000411,120]
[394594250,1763747525024,-465.98991264,0.000411,120]
[394594251,1763747525056,-465.98991264,0.000411,120]
[394594252,1763747525090,-465.98991264,0.000411,120]
[394594253,1763747525121,-465.98991264,0.000411,120]
[394594254,1763747525155,-465.98991264,0.000411,120]
[394594255,1763747525189,-465.98991264,0.000411,120]
[394594256,1763747525220,-465.98,0.000411,120]
[394594257,1763747525250,-1087.30979617,0.000411,120]
[394594258,1763747525278,-1087.30979617,0.000411,120]
[394594259,1763747525307,-1087.30979617,0.000411,120]
[394594260,1763747525338,-1087.30979617,0.000411,120]
[394594261,1763747525544,-1087.30979617,0.000411,120]
[394594262,1763747525588,-1087.30979617,0.000411,120]
[394594263,1763747525621,-1087.30979617,0.000411,120]
[394594264,1763747525655,-1087.30979617,0.000411,120]
[394594265,1763747525687,-1087.30979617,0.000411,120]
[394594266,1763747525718,-1087.30979617,0.000411,120]
[394594267,1763747525750,-1087.30979617,0.000411,120]
[394594268,1763747525779,-1087.30979617,0.000411,120]
[394594269,1763747525809,-1087.30979617,0.000411,120]
[394594270,1763747525840,-1087.30979617,0.000411,120]
[394594271,1763747525869,-1087.30979617,0.000411,120]
[394594272,1763747525899,-1087.30979617,0.000411,120]
[394594273,1763747525929,-1087.30979617,0.000411,120]
[394594274,1763747525959,-1087.30979617,0.000411,120]
[394594275,1763747525992,-1087.30979617,0.000411,120]
[394594276,1763747526024,-1087.3,0.000411,120]
[394594277,1763747526055,-580.73589352,0.000411,120]
[394594278,1763747526090,-580.73589352,0.000411,120]
[394594279,1763747526130,-580.73589352,0.000411,120]
[394594280,1763747526166,-580.73589352,0.000411,120]
[394594281,1763747526199,-580.73589352,0.000411,120]
[394594282,1763747526232,-580.73589352,0.000411,120]
[394594283,1763747526266,-580.73589352,0.000411,120]
[394594284,1763747526299,-580.73589352,0.000411,120]
[394594285,1763747526334,-580.73589352,0.000411,120]
[394594286,1763747526367,-580.73589352,0.000411,120]
[394594287,1763747526398,-580.73589352,0.000411,120]
[394594288,1763747526434,-580.73589352,0.000411,120]
[394594289,1763747526466,-580.73589352,0.000411,120]
[394594290,1763747526499,-580.73589352,0.000411,120]
[394594291,1763747526530,-580.73589352,0.000411,120]
[394594292,1763747526562,-580.73589352,0.000411,120]
[394594293,1763747526600,-580.73589352,0.000411,120]
[394594294,1763747526632,-580.73589352,0.000411,120]
[394594295,1763747526667,-580.73589352,0.000411,120]
[394594296,1763747526706,-580.73,0.000411,120]
[394594297,1763747526740,-1355.05041821,0.000411,120]
[394594298,1763747526772,-1355.05041821,0.000411,120]
[394594299,1763747526804,-1355.05041821,0.000411,120]
[394594300,1763747526837,-1355.05041821,0.000411,120]
[394594301,1763747526870,-1355.05041821,0.000411,120]
[394594302,1763747526902,-1355.05041821,0.000411,120]
[394594303,1763747526934,-1355.05041821,0.000411,120]
[394594304,1763747526968,-1355.05041821,0.000411,120]
[394594305,1763747526999,-1355.05041821,0.000411,120]
[394594306,1763747527031,-1355.05041821,0.000411,120]
[394594307,1763747527061,-1355.05041821,0.000411,120]
[394594308,1763747527096,-1355.05041821,0.000411,120]
[394594309,1763747527128,-1355.05041821,0.000411,120]
[394594310,1763747527161,-1355.05041821,0.000411,120]
[394594311,1763747527193,-1355.05041821,0.000411,120]
[394594312,1763747527228,-1355.05041821,0.000411,120]
[394594313,1763747527260,-1355.05041821,0.000411,120]
[394594314,1763747527292,-1355.05041821,0.000411,120]
[394594315,1763747527324,-1355.05041821,0.000411,120]
[394594316,1763747527361,-1355.05,0.000411,120]
[394594317,1763747527396,-800.0,0.0004111,60]
[394594318,1763747527433,-1000.0,0.00041123,120]
[394594319,1763747527466,-1000.0,0.00041135,60]
[394594320,1763747527499,-1000.0,0.0004115,120]
[394594321,1763747527531,-1000.0,0.00041178,120]
[394594322,1763747527565,-1000.0,0.00041205,120]
[394594323,1763747527598,-1000.0,0.00041232,120]
[394594324,1763747527631,-500.0,0.00041233,60]
[394594325,1763747527664,-1000.0,0.0004126,120]
[394594326,1763747527697,-500.0,0.00041263,120]
[394594327,1763747527728,-1000.0,0.00041287,120]
[394594328,1763747527760,-731.97957,0.00041288,30]
[394594329,1763747527791,-1000.0,0.00041315,120]
[394594330,1763747527821,-1564.0,0.0004132,30]
[394594331,1763747527858,-3643.76438321,0.0004133,120]
[394594332,1763747527889,-1000.0,0.00041342,120]
[394594333,1763747527921,-150.0,0.00041367,120]
[394594334,1763747527952,-1000.0,0.00041369,120]
[394594335,1763747527982,-500.0,0.0004137,60]
[394594336,1763747528015,-1000.0,0.00041397,120]
[394594337,1763747528050,-300.0,0.000414,120]
[394594338,1763747528088,-13357.25662666,0.00041417,120]
[394594339,1763747528122,-1184.09588044,0.0004142,120]
[394594340,1763747528155,-1000.0,0.00041424,120]
[394594341,1763747528187,-1000.0,0.00041452,120]
[394594342,1763747528219,-1000.0,0.00041479,120]
[394594343,1763747528255,-731.97957,0.00041488,30]
[394594344,1763747528288,-1000.0,0.000415,120]
[394594345,1763747528321,-66227.11447685,0.000415,30]
[394594346,1763747528357,-2823.76091614,0.000415,30]
[394594347,1763747528390,-2118.9,0.000415,120]
[394594348,1763747528425,-2000.0,0.000415,60]
[394594349,1763747528458,-974.89259348,0.000415,120]
[394594350,1763747528492,-468.65005224,0.000415,30]
[394594351,1763747528525,-6274.01291462,0.000415,120]
[394594352,1763747528559,-619.43509148,0.000415,120]
[394594353,1763747528599,-1337.03391193,0.000415,30]
[394594354,1763747528634,-4869.5828455,0.000415,30]
[394594355,1763747528668,-1275.905334,0.000415,120]
[394594356,1763747529011,-860.0,0.000415,30]
[394594357,1763747529048,-2469.91958001,0.000415,30]
[394594358,1763747529082,-1000.0,0.00041506,120]
[394594359,1763747529117,-500.0,0.00041507,60]
[394594360,1763747529152,-1000.0,0.00041534,120]
[394594361,1763747529187,-200.0,0.00041535,120]
[394594362,1763747529219,-1000.0,0.00041561,120]
[394594363,1763747529251,-2421.14,0.00041563,30]
[394594364,1763747529282,-1210.76,0.00041563,30]
[394594365,1763747529313,-1210.76,0.00041563,30]
[394594366,1763747529344,-1210.76,0.00041563,30]
[394594367,1763747529376,-150.0,0.00041585,120]
[394594368,1763747529415,-1000.0,0.00041589,120]
[394594369,1763747529449,-13809.3659717,0.000416,120]
[394594370,1763747529481,-934.11488704,0.00041616,120]
[394594371,1763747529515,-500.0,0.00041644,60]
[394594372,1763747529547,-13785.99727118,0.0004166,120]
[394594373,1763747529579,-731.97957,0.00041688,30]
[394594374,1763747529615,-531.00087884,0.00041695,30]
[394594375,1763747529649,-1542514.6064,0.00041697,30]
[394594376,1763747529681,-185.9944082,0.000417,120]
[394594377,1763747529712,-607.68753264,0.000417,120]
[394594378,1763747529744,-658.65367058,0.000417,120]
[394594379,1763747529774,-202.83262532,0.000417,120]
[394594380,1763747529806,-416.92464114,0.000417,120]
[394594381,1763747529841,-2086.6758214,0.000417,120]
[394594382,1763747529872,-300.00055568,0.000417,120]
[394594383,1763747529905,-1564.0,0.00041742,30]
[394594384,1763747529937,-1033.7,0.0004176,120]
[394594385,1763747529968,-500.0,0.00041781,60]
[394594386,1763747530001,-524.0,0.00041792,120]
[394594387,1763747530039,-1084.6095,0.00041799,30]
[394594388,1763747530075,-300.0,0.000418,30]
[394594389,1763747530110,-796.53659652,0.000418,120]
[394594390,1763747530143,-150.0,0.00041807,120]
[394594391,1763747530176,-223.84299385,0.00041838,120]
[394594392,1763747530208,-209.73871541,0.00041838,120]
[394594393,1763747530239,-206.02802539,0.00041838,120]
[394594394,1763747530270,-731.97957,0.00041888,30]
[394594395,1763747530302,-1020.44711866,0.000419,120]
[394594396,1763747530339,-201.40611937,0.000419,120]
[394594397,1763747530374,-50000.0,0.00041906,30]
[394594398,1763747530409,-50000.0,0.00041906,31]
[394594399,1763747530448,-50000.0,0.00041906,32]
[394594400,1763747530483,-50000.0,0.00041906,33]
[394594401,1763747530518,-50000.0,0.00041906,34]
[394594402,1763747530551,-50000.0,0.00041906,35]
[394594403,1763747530589,-50000.0,0.00041906,36]
[394594404,1763747530624,-50000.0,0.00041906,37]
[394594405,1763747530658,-50000.0,0.00041906,38]
[394594406,1763747530696,-50000.0,0.00041906,39]
[394594407,1763747530825,-376.79204486,0.0004191,120]
[394594408,1763747530877,-1000.0,0.00041918,30]
[394594409,1763747530929,-1000.0,0.00041918,30]
[394594410,1763747530991,-1000.0,0.00041918,30]
[394594411,1763747531039,-1000.0,0.00041918,30]
[394594412,1763747531088,-1000.0,0.00041918,30]
[394594413,1763747531132,-1000.0,0.00041918,30]
[394594414,1763747531177,-1000.0,0.00041918,30]
[394594415,1763747531222,-1000.0,0.00041918,30]
[394594416,1763747531263,-1031.0,0.00041918,30]
[394594417,1763747531307,-500.0,0.00041918,60]
[394594418,1763747531349,-3010.75,0.0004192,120]
[394594419,1763747531399,-3000.0,0.00041929,120]
[394594420,1763747531444,-641.89417,0.00041929,120]
[394594421,1763747531490,-281.0,0.00041932,30]
[394594422,1763747531534,-500.0,0.00041932,60]
[394594423,1763747531579,-301.0,0.00041934,30]
[394594424,1763747531628,-1825079.28854554,0.00041936,30]
[394594425,1763747550831,-1006.84892244,0.00041907,90]
[394594426,1763747550862,-1568.17412333,0.00041907,120]
[394594427,1763747550891,-1010.70188822,0.00041907,120]
[394594428,1763747550923,-700.0,0.00041907,120]
[394594429,1763747550952,-625.0,0.00041907,120]
[394594430,1763747550981,-904.57339635,0.00041907,30]
[394594431,1763747551010,-168.93137589,0.00041907,120]
[394594432,1763747551040,-311.520557,0.00041907,120]
[394594433,1763747551068,-1000.0,0.00041907,30]
[394594434,1763747551096,-1000.0,0.00041907,30]
[394594435,1763747551126,-1000.0,0.00041907,30]
[394594436,1763747551154,-1000.0,0.00041907,30]
[394594437,1763747551182,-857.0,0.00041907,30]
[394594438,1763747551209,-1815.95247168,0.00041907,30]
[394594439,1763747551239,-11830.77,0.00041907,30]
[394594440,1763747551268,-891.0,0.00041907,30]
[394594441,1763747551296,-2500.0,0.00041907,90]
[394594442,1763747551324,-2656.62,0.00041907,60]
[394594443,1763747551354,-159.0,0.00041907,30]
[394594444,1763747551383,-31163.16415607,0.00041907,30]
[394594445,1763747551418,-1686.18738261,0.00041907,120]
[394594446,1763747551447,-2360.0,0.00041907,30]
[394594447,1763747551478,-210.52978026,0.00041907,120]
[394594448,1763747551509,-615.03848645,0.00041907,120]
[394594449,1763747551537,-222.0836395,0.00041907,120]
[394594450,1763747551567,-175.73141016,0.00041907,120]
[394594451,1763747551597,-1282.02604806,0.00041907,120]
[394594452,1763747551644,-2250.0,0.00041907,120]
[394594453,1763747551675,-985.79,0.00041907,30]
[394594454,1763747551706,-171.77,0.00041907,120]
[394594455,1763747551735,-150.01,0.00041907,30]
[394594456,1763747551763,-150.02,0.00041907,30]
[394594457,1763747551791,-150.01,0.00041907,30]
[394594458,1763747551819,-150.01,0.00041907,30]
[394594459,1763747551848,-150.01,0.00041907,30]
[394594460,1763747551879,-150.01,0.00041907,30]
[394594461,1763747551910,-150.01,0.00041907,30]
[394594462,1763747551938,-150.01,0.00041907,30]
[394594463,1763747551964,-150.01,0.00041907,30]
[394594464,1763747551993,-324.9450437,0.00041907,30]
[394594465,1763747552022,-879.07,0.00041907,39]
[394594466,1763747552052,-20287.30032122,0.00041907,120]
[394594467,1763747552081,-145217.43405731,0.00041907,60]
[394594468,1763747552110,-20299.28304664,0.00041907,120]
[394594469,1763747552138,-263.258183,0.00041907,120]
[394594470,1763747552168,-50000.0,0.00041907,30]
[394594471,1763747552196,-50000.0,0.00041907,31]
[394594472,1763747552223,-150.01,0.00041907,30]
[394594473,1763747552253,-150.01,0.00041907,30]
[394594474,1763747552286,-150.01,0.00041907,30]
[394594475,1763747552318,-150.01,0.00041907,30]
[394594476,1763747552347,-150.01,0.00041907,30]
[394594477,1763747552379,-10000.74488563,0.00041907,60]
[394594478,1763747552410,-70333.46845805,0.00041907,60]
[394594479,1763747552444,-82641.04854605,0.00041907,60]
[394594480,1763747552479,-1748.14,0.00041907,30]
[394594481,1763747552508,-348.0,0.00041907,30]
[394594482,1763747552539,-574.41875136,0.00041907,120]
[394594483,1763747552569,-940.21189745,0.00041907,30]
[394594484,1763747552599,-374.12499089,0.00041907,120]
[394594485,1763747552629,-153.60031049,0.00041907,30]
[394594486,1763747552658,-36861.46886507,0.00041907,30]
[394594487,1763747552687,-500.008,0.00041907,120]
[394594488,1763747552716,-150.0,0.00041907,30]
[394594489,1763747552746,-150.0,0.00041907,30]
[394594490,1763747552781,-150.0,0.00041907,30]
[394594491,1763747552809,-150.0,0.00041907,30]
[394594492,1763747552838,-150.0,0.00041907,30]
[394594493,1763747552868,-150.0,0.00041907,30]
[394594494,1763747552896,-150.0,0.00041907,30]
[394594495,1763747552925,-150.0,0.00041907,30]
[394594496,1763747552953,-150.0,0.00041907,30]
[394594497,1763747552983,-150.0,0.00041907,30]
[394594498,1763747553012,-150.0,0.00041907,30]
[394594499,1763747553042,-150.0,0.00041907,30]
[394594500,1763747553072,-150.0,0.00041907,30]
[394594501,1763747553103,-150.0,0.00041907,30]
[394594502,1763747553133,-150.0,0.00041907,30]
[394594503,1763747553164,-150.0,0.00041907,30]
[394594504,1763747553195,-150.0,0.00041907,30]
[394594505,1763747553224,-150.0,0.00041907,30]
[394594506,1763747553253,-150.0,0.00041907,30]
[394594507,1763747553284,-150.0,0.00041907,30]
[394594508,1763747553313,-150.0,0.00041907,30]
[394594509,1763747553343,-150.0,0.00041907,30]
[394594510,1763747553377,-150.0,0.00041907,30]
[394594511,1763747553412,-150.0,0.00041907,30]
[394594512,1763747553446,-150.0,0.00041907,30]
[394594513,1763747553668,-175.96337077,0.00041907,30]
[394594514,1763747553703,-700.14462266,0.00041907,30]
[394594515,1763747553738,-1234.66211159,0.00041907,120]
[394594516,1763747553773,-762.281965,0.00041907,120]
[394594517,1763747553808,-770.31238657,0.00041907,30]
[394594518,1763747553840,-1751462.02886609,0.00041907,30]
[394594519,1763747553878,-535619.76427101,0.00041907,30]
[394594520,1763747553911,-1796977.63652721,0.00041907,30]
[394594521,1763747553944,-54859.80469559,0.00041907,30]
[394594522,1763747553989,-250920.75883048,0.00041907,30]
[394594523,1763747554020,-226.41268355,0.00041907,30]
[394594524,1763747554051,-200.0,0.00041907,30]
[394594525,1763747554081,-200.0,0.00041907,30]
[394594526,1763747554110,-200.0,0.00041907,30]
[394594527,1763747554139,-200.0,0.00041907,30]
[394594528,1763747554168,-200.0,0.00041907,30]
[394594529,1763747554196,-200.0,0.00041907,30]
[394594530,1763747554228,-200.0,0.00041907,30]
[394594531,1763747554257,-200.0,0.00041907,30]
[394594532,1763747554287,-200.0,0.00041907,30]
[394594533,1763747554317,-200.0,0.00041907,30]
[394594534,1763747554347,-200.0,0.00041907,30]
[394594535,1763747554379,-200.0,0.00041907,30]
[394594536,1763747554409,-8352.31199821,0.00041907,120]
[394594537,1763747554441,-200.0,0.00041907,30]
[394594538,1763747554474,-200.0,0.00041907,30]
[394594539,1763747554509,-200.0,0.00041907,30]
[394594540,1763747554539,-200.0,0.00041907,30]
[394594541,1763747554568,-200.0,0.00041907,30]
[394594542,1763747554597,-200.0,0.00041907,30]
[394594543,1763747554630,-200.0,0.00041907,30]
[394594544,1763747554662,-24412.82867639,0.00041907,32]
[394594545,1763747558282,-25587.17132361,0.00041907,32]
[394594546,1763747558316,-50000.0,0.00041907,33]
[394594547,1763747558350,-3000.0,0.00041907,30]
[394594548,1763747558383,-3000.0,0.00041907,30]
[394594549,1763747558424,-3000.0,0.00041907,30]
[394594550,1763747558459,-3000.0,0.00041907,30]
[394594551,1763747558494,-3000.0,0.00041907,30]
[394594552,1763747558530,-3000.0,0.00041907,30]
[394594553,1763747558572,-3000.0,0.00041907,30]
[394594554,1763747558614,-3000.0,0.00041907,30]
[394594555,1763747558652,-3000.0,0.00041907,30]
[394594556,1763747558691,-2415.0,0.00041907,30]
[394594557,1763747558727,-3000.0,0.00041907,120]
[394594558,1763747558764,-3000.0,0.00041907,120]
[394594559,1763747558798,-3000.0,0.00041907,120]
[394594560,1763747558830,-3000.0,0.00041907,120]
[394594561,1763747558869,-606.0,0.00041907,120]
[394594562,1763747558905,-89040.02254782,0.00041907,90]
[394594563,1763747558946,-30000.0,0.00041907,120]
[394594564,1763747558982,-15112.76387713,0.00041907,30]
[394594565,1763747559019,-108676.02636702,0.00041907,30]
[394594566,1763747559056,-3448836.04163109,0.00041907,30]
[394594567,1763747559088,-30260.09693266,0.00041907,30]
[394594568,1763747559121,-1131966.0357227,0.00041907,30]
[394594569,1763747559152,-28500.84159797,0.00041907,30]
[394594570,1763747561675,-26683.566026,0.00041907,30]
[394594571,1763747561708,-228650.38849209,0.00041907,30]
[394594572,1763747561739,-2299.999992,0.00041907,31]
[394594573,1763747561771,-1039270.0,0.00041907,30]
[394594574,1763747561802,-16897.76532001,0.00041907,60]
[394594575,1763747561833,-5100.0,0.00041907,36]
[394594576,1763747561868,-480.0,0.00041907,32]
[394594577,1763747561898,-500.28103141,0.00041907,120]
[394594578,1763747561929,-264.26393306,0.00041907,120]
[394594579,1763747561960,-1096.0,0.00041907,30]
[394594580,1763747561990,-1096.0,0.00041907,30]
[394594581,1763747562020,-1096.0,0.00041907,30]
[394594582,1763747562053,-1096.0,0.00041907,30]
[394594583,1763747562085,-1096.0,0.00041907,30]
[394594584,1763747562119,-50000.0,0.00041907,34]
[394594585,1763747562151,-50000.0,0.00041907,35]
[394594586,1763747562185,-50000.0,0.00041907,36]
[394594587,1763747562217,-50000.0,0.00041907,37]
[394594588,1763747562247,-1096.0,0.00041907,30]
[394594589,1763747562278,-200.0,0.00041907,30]
[394594590,1763747576540,-1000.0,0.00036965,120]
[394594591,1763747576573,-453.365,0.00036965,30]
[394594592,1763747576605,-958.694297,0.00037,31]
[394594593,1763747576635,-958.694297,0.00037,31]
[394594594,1763747576666,-958.694297,0.00037,31]
[394594595,1763747576697,-958.694297,0.00037,31]
[394594596,1763747576728,-185.08,0.00037,35]
[394594597,1763747576765,-500.0,0.000387,120]
[394594598,1763747576795,-500.0,0.000387,120]
[394594599,1763747576829,-500.0,0.000387,120]
[394594600,1763747576864,-958.694297,0.000395,120]
[394594601,1763747576895,-958.694297,0.000395,120]
[394594602,1763747576927,-958.694297,0.000395,120]
[394594603,1763747576956,-958.694297,0.000395,120]
[394594604,1763747577206,-300.220151,0.00039871,97]
[394594605,1763747577241,-4016.45461141,0.000399,120]
[394594606,1763747577275,-195.7833,0.00039999,31]
[394594607,1763747577309,-189.94800072,0.00039999,31]
[394594608,1763747577339,-500.0,0.00039999,31]
[394594609,1763747577369,-500.0,0.00039999,31]
[394594610,1763747577400,-549.13800891,0.00039999,31]
[394594611,1763747577430,-500.0,0.00039999,31]
[394594612,1763747577459,-238.88051653,0.00039999,31]
[394594613,1763747577490,-500.0,0.00039999,31]
[394594614,1763747577520,-288.137,0.00040266,30]
[394594615,1763747577549,-395.19220235,0.000404,120]
[394594616,1763747577577,-250.15478469,0.000404,120]
[394594617,1763747577606,-180.00033341,0.000404,120]
[394594618,1763747577635,-1669.34065712,0.000404,120]
[394594619,1763747577669,-958.694297,0.00041,120]
[394594620,1763747577697,-958.694297,0.00041,120]
[394594621,1763747577725,-958.694297,0.00041,120]
[394594622,1763747577753,-958.694297,0.00041,120]
[394594623,1763747577782,-958.694297,0.00041,120]
[394594624,1763747577810,-958.694297,0.00041,120]
[394594625,1763747577841,-958.694297,0.00041,120]
[394594626,1763747577871,-958.694297,0.00041,120]
[394594627,1763747577902,-958.694297,0.00041,120]
[394594628,1763747577933,-958.694297,0.00041,120]
[394594629,1763747577964,-958.694297,0.00041,120]
[394594630,1763747577995,-958.694294,0.00041,120]
[394594631,1763747578034,-1105.70255146,0.00041069,50]
[394594632,1763747578064,-500.0,0.00041114,60]
[394594633,1763747578094,-395.19220235,0.000416,120]
[394594634,1763747578123,-250.15478469,0.000416,120]
[394594635,1763747578166,-180.00033341,0.000416,120]
[394594636,1763747578198,-1669.34065712,0.000416,120]
[394594637,1763747578230,-500.0,0.00041662,60]
[394594638,1763747578263,-805.406751,0.000419,120]
[394594639,1763747578315,-962364.07448931,0.00041936,30]
[394594640,1763747578349,-2787443.36303485,0.00041936,120]
[394594641,1763747578382,-2217.30681559,0.00041936,30]
[394594642,1763747578417,-60522.23231285,0.00041936,30]
[394594643,1763747578455,-150.0,0.00041936,120]
[394594644,1763747578489,-500.0,0.00041936,60]
[394594645,1763747578524,-505.76,0.00041938,30]
[394594646,1763747578556,-1000.0,0.0004195,120]
[394594647,1763747578587,-60522.23231285,0.00041953,30]
[394594648,1763747578630,-60522.23231285,0.00041953,30]
[394594649,1763747578664,-725.73439326,0.00041999,120]
[394594650,1763747578701,-50000.0,0.00042,42]
[394594651,1763747578734,-1000.0,0.00042,120]
[394594652,1763747578768,-300.0,0.00042,120]
[394594653,1763747578804,-171.81422693,0.00042,120]
[394594654,1763747578839,-2000.0,0.00042,60]
[394594655,1763747578883,-330.33056268,0.00042,120]
[394594656,1763747578926,-309.6310114,0.00042,30]
[394594657,1763747578963,-1822.19853139,0.00042,120]
[394594658,1763747578998,-529.3430782,0.00042,60]
[394594659,1763747579033,-300.0,0.00042,60]
[394594660,1763747579074,-202.19,0.00042,30]
[394594661,1763747579116,-426.56612961,0.00042,30]
[394594662,1763747579160,-126129.92495668,0.00042033,30]
[394594663,1763747579193,-21263.0,0.00042033,30]
[394594664,1763747579228,-500.0,0.00042116,120]
[394594665,1763747579262,-1564.0,0.00042163,30]
[394594666,1763747579297,-3545.51373618,0.0004218,90]
[394594667,1763747579334,-500.0,0.0004221,60]
[394594668,1763747579369,-1210.76,0.00042385,30]
[394594669,1763747579407,-1210.76,0.00042385,30]
[394594670,1763747579443,-1210.76,0.00042385,30]
[394594671,1763747579477,-1033.7,0.0004248,120]
[394594672,1763747579510,-3318.0,0.000425,120]
[394594673,1763747579543,-1000.0,0.000425,120]
[394594674,1763747579577,-1564.0,0.00042585,30]
[394594675,1763747579608,-200.0,0.00042669,120]
[394594676,1763747579652,-519.0,0.000427,120]
[394594677,1763747579683,-1617.0,0.000427,120]
[394594678,1763747579715,-500.0,0.00042758,60]
[394594679,1763747579747,-395.19220235,0.000429,120]
[394594680,1763747579777,-250.15478469,0.000429,120]
[394594681,1763747579808,-180.00033341,0.000429,120]
[394594682,1763747579840,-1669.34065712,0.000429,120]
[394594683,1763747579876,-224.57482387,0.00042934,120]
[394594684,1763747579907,-211.0,0.0004295,30]
[394594685,1763747579939,-500.0,0.00042969,120]
[394594686,1763747579974,-158.39872829,0.00043,120]
[394594687,1763747580005,-1000.0,0.00043,120]
[394594688,1763747580290,-438.0,0.00043,120]
[394594689,1763747580324,-458.1255367,0.00043,120]
[394594690,1763747580356,-150.0,0.00043,120]
[394594691,1763747580386,-284.25972086,0.00043,120]
[394594692,1763747580420,-271.56842922,0.00043,120]
[394594693,1763747580453,-10000.0,0.00043,30]
[394594694,1763747580487,-4750.0,0.00043,30]
[394594695,1763747580521,-2700.75,0.00043,30]
[394594696,1763747580551,-1564.0,0.00043006,30]
[394594697,1763747580582,-204.2,0.00043014,120]
[394594698,1763747580612,-500.0,0.00043032,60]
[394594699,1763747580643,-1064.85867399,0.000431,120]
[394594700,1763747580671,-1065.65079927,0.000432,120]
[394594701,1763747580701,-1033.7,0.000432,120]
[394594702,1763747580731,-1643.48,0.00043207,30]
[394594703,1763747580759,-1407.0814,0.0004322,30]
[394594704,1763747580789,-150.0,0.00043245,120]
[394594705,1763747580818,-426.56612961,0.000433,30]
[394594706,1763747580848,-500.0,0.00043306,60]
[394594707,1763747580878,-270.69,0.00043322,120]
[394594708,1763747580907,-1564.0,0.00043428,30]
[394594709,1763747580935,-200.0,0.00043452,30]
[394594710,1763747580964,-150.0,0.00043477,120]